bitfinex/quotes_SOLUSD_20220118
["timestamp","ask_amount","ask_price","bid_price","bid_amount"]
[1642488625084,10.9159,140.69,140.65,1.96755369]
[1642488625286,0.25,140.69,140.61,12.63265369]
[1642488625485,2.02530214,140.7,140.63,0.25]
[1642488625885,2.02530214,140.7,140.63,1.45712465]
[1642488626286,0.25,140.69,140.64,10.9124]
[1642488626488,0.25,140.69,140.64,10.6624]
[1642488626691,0.25,140.69,140.64,12.62995369]
[1642488626890,4.86830214,140.72,140.65,0.25]
[1642488627090,0.25,140.71,140.65,0.25]
[1642488627389,0.25,140.71,140.66,13.5037]
[1642488627610,0.25,140.71,140.66,10.6607]
[1642488628414,0.25,140.72,140.66,10.6607]
[1642488629815,0.25,140.72,140.66,16.6607]
[1642488630916,2.27530214,140.72,140.66,16.6607]
[1642488631717,2.27530214,140.72,140.66,6.0]
[1642488631921,2.27530214,140.72,140.65,8.843]
[1642488632118,2.27530214,140.72,140.65,2.843]
[1642488632317,2.27530214,140.72,140.65,8.843]
[1642488633218,2.27530214,140.72,140.64,25.404]
[1642488633417,2.27530214,140.72,140.65,10.912]
[1642488634020,2.02530214,140.72,140.65,10.912]
[1642488635120,2.02530214,140.73,140.65,10.912]
[1642488635322,2.27530214,140.73,140.65,10.912]
[1642488636022,2.27530214,140.73,140.65,16.912]
[1642488636623,2.02530214,140.72,140.65,16.912]
[1642488637524,2.02530214,140.73,140.65,16.912]
[1642488637725,2.02530214,140.73,140.66,2.843]
[1642488638126,0.25,140.72,140.66,2.843]
[1642488638324,9.436,140.72,140.64,1.96755369]
[1642488638924,11.22505272,140.72,140.64,1.96755369]
[1642488639527,2.02530214,140.71,140.62,1.96755369]
[1642488639725,26.57910214,140.71,140.62,2.21755369]
[1642488639924,26.57910214,140.71,140.62,8.21755369]
[1642488639925,0.25,140.7,140.62,8.21755369]
[1642488640628,10.6662,140.69,140.62,8.21755369]
[1642488640826,0.25,140.68,140.62,8.21755369]
[1642488642832,0.25,140.68,140.62,6.25]
[1642488643027,0.25,140.68,140.62,9.093]
[1642488644132,0.25,140.68,140.62,6.25]
[1642488644330,0.25,140.69,140.62,25.1917]
[1642488644630,0.25,140.69,140.62,31.1917]
[1642488646433,0.25,140.69,140.62,33.15925369]
[1642488647433,0.25,140.69,140.62,31.1917]
[1642488648334,0.25,140.69,140.62,41.8561]
[1642488649137,0.25,140.69,140.62,44.4491]
[1642488649336,2.843,140.68,140.62,1.96755369]
[1642488649737,0.25,140.67,140.62,1.96755369]
[1642488650237,15.53460214,140.69,140.61,1.96755369]
[1642488650437,0.25,140.68,140.61,1.96755369]
[1642488650639,0.25,140.68,140.62,0.25]
[1642488655378,10.9165,140.68,140.62,0.25]
[1642488656579,10.9165,140.68,140.61,25.78685369]
[1642488657478,10.9165,140.68,140.61,23.8193]
[1642488658179,10.9165,140.68,140.62,0.25]
[1642488659179,0.25,140.68,140.61,28.62985369]
[1642488659379,2.02530214,140.69,140.62,0.25]
[1642488659580,2.02530214,140.69,140.62,3.093]
[1642488660380,2.02530214,140.69,140.62,2.843]
[1642488660579,2.02530214,140.69,140.62,13.5067]
[1642488661181,2.02530214,140.7,140.62,15.47425369]
[1642488661383,2.27530214,140.7,140.62,15.47425369]
[1642488661884,2.27530214,140.7,140.63,0.25]
[1642488662083,2.27530214,140.7,140.62,15.22425369]
[1642488663386,12.94050214,140.7,140.62,10.56055369]
[1642488663590,12.94050214,140.7,140.62,4.56055369]
[1642488663786,12.94050214,140.7,140.62,10.56055369]
[1642488664786,12.94050214,140.7,140.62,8.593]
[1642488665692,12.94050214,140.7,140.62,6.0]
[1642488665892,12.94050214,140.7,140.61,31.78685369]
[1642488666090,12.94050214,140.7,140.62,0.25]
[1642488666492,12.94050214,140.7,140.61,31.78685369]
[1642488667191,2.02530214,140.69,140.61,31.78685369]
[1642488667392,0.25,140.68,140.61,31.78685369]
[1642488669594,0.25,140.68,140.62,0.25]
[1642488669795,0.25,140.68,140.63,2.843]
[1642488669995,2.02530214,140.69,140.62,0.25]
[1642488670393,2.02530214,140.69,140.62,3.093]
[1642488670700,2.02530214,140.7,140.62,3.093]
[1642488671697,2.02530214,140.7,140.62,13.7569]
[1642488672002,0.25,140.69,140.62,13.7569]
[1642488673824,0.25,140.69,140.62,2.843]
[1642488674025,2.843,140.68,140.61,25.78685369]
[1642488674227,2.843,140.68,140.61,1.96755369]
[1642488674427,0.25,140.67,140.61,1.96755369]
[1642488674629,10.6686,140.66,140.61,1.96755369]
[1642488674830,0.25,140.65,140.61,1.96755369]
[1642488675827,0.25,140.65,140.59,12.19755369]
[1642488676027,0.25,140.65,140.59,1.96755369]
[1642488676228,0.25,140.65,140.59,7.96755369]
[1642488676427,0.25,140.65,140.59,1.96755369]
[1642488676627,10.9189,140.65,140.59,1.96755369]
[1642488677027,10.9189,140.65,140.59,6.0]
[1642488677430,10.9189,140.65,140.58,1.96755369]
[1642488677629,10.9189,140.65,140.58,7.96755369]
[1642488681532,0.25,140.65,140.58,7.96755369]
[1642488682233,0.25,140.66,140.59,22.631]
[1642488682633,0.25,140.66,140.59,28.631]
[1642488683332,0.25,140.66,140.59,39.2975]
[1642488683534,0.25,140.66,140.6,0.25]
[1642488683933,0.25,140.66,140.59,36.1415]
[1642488684134,0.25,140.66,140.59,33.2975]
[1642488684341,0.25,140.66,140.59,39.2975]
[1642488684537,0.25,140.66,140.59,33.2975]
[1642488685137,0.25,140.66,140.59,39.2975]
[1642488686237,0.25,140.66,140.59,28.631]
[1642488686436,0.25,140.66,140.59,22.631]
[1642488686639,10.9181,140.66,140.59,22.631]
[1642488689244,0.25,140.66,140.58,26.64105369]
[1642488689445,0.25,140.66,140.58,32.64105369]
[1642488690547,0.25,140.66,140.58,43.30835369]
[1642488691144,0.25,140.66,140.58,32.64105369]
[1642488692646,10.9182,140.66,140.58,32.64105369]
[1642488692847,13.7622,140.66,140.58,32.64105369]
[1642488693749,3.094,140.66,140.59,0.25]
[1642488693950,0.25,140.66,140.59,2.844]
[1642488694151,0.25,140.66,140.59,8.844]
[1642488695355,0.25,140.66,140.59,6.0]
[1642488695855,0.25,140.66,140.58,32.64105369]
[1642488696054,3.094,140.66,140.58,32.64105369]
[1642488697556,13.7622,140.66,140.58,32.64105369]
[1642488697755,10.9182,140.66,140.59,0.25]
[1642488698362,2.02530214,140.67,140.59,0.25]
[1642488698658,2.02530214,140.67,140.6,2.844]
[1642488698882,2.02530214,140.67,140.61,0.25]
[1642488699083,2.02530214,140.67,140.62,2.844]
[1642488699282,2.02530214,140.67,140.63,0.25]
[1642488699484,2.02530214,140.67,140.62,8.844]
[1642488699683,2.02530214,140.67,140.62,6.0]
[1642488699983,2.02530214,140.69,140.61,38.0615]
[1642488700184,2.02530214,140.69,140.61,48.2915]
[1642488700383,0.25,140.68,140.61,48.2915]
[1642488700584,0.25,140.68,140.62,10.6638]
[1642488700787,0.25,140.68,140.62,16.6638]
[1642488702686,2.02530214,140.69,140.62,16.6638]
[1642488703388,2.02530214,140.69,140.62,24.4148]
[1642488703585,2.02530214,140.69,140.64,10.6626]
[1642488703789,2.02530214,140.69,140.64,16.6626]
[1642488704886,2.02530214,140.7,140.64,16.6626]
[1642488705988,2.02530214,140.71,140.64,16.6626]
[1642488706187,46.54085166,140.7,140.64,16.6626]
[1642488707089,48.5661538,140.7,140.64,16.6626]
[1642488707390,2.02530214,140.7,140.64,16.6626]
[1642488707589,1.52530214,140.7,140.65,10.9117]
[1642488707789,1.52530214,140.7,140.65,16.6617]
[1642488707988,1.52530214,140.7,140.65,40.4817]
[1642488708789,0.25,140.69,140.65,29.82]
[1642488709689,0.25,140.69,140.65,23.82]
[1642488709890,0.25,140.71,140.65,29.82]
[1642488710892,36.2746,140.73,140.65,29.82]
[1642488711095,0.25,140.71,140.65,29.82]
[1642488712194,0.25,140.72,140.65,29.82]
[1642488712395,0.25,140.72,140.65,37.131]
[1642488712595,0.25,140.72,140.65,47.7931]
[1642488713795,22.7681,140.73,140.65,58.0231]
[1642488713997,22.7681,140.73,140.66,3.093]
[1642488714199,4.0508828,140.76,140.67,10.66]
[1642488714398,4.0508828,140.76,140.68,23.4329]
[1642488714599,4.0508828,140.76,140.68,31.8369]
[1642488714800,4.0508828,140.76,140.69,0.25]
[1642488714999,4.0508828,140.76,140.7,2.842]
[1642488715198,6.07008171,140.79,140.71,10.6565]
[1642488715199,4.0508828,140.79,140.71,10.6565]
[1642488715398,4.0508828,140.79,140.72,2.841]
[1642488715801,4.0508828,140.79,140.72,8.841]
[1642488716406,0.25,140.78,140.72,8.841]
[1642488716602,0.25,140.78,140.73,23.5291]
[1642488716803,0.25,140.78,140.73,29.5291]
[1642488717203,0.25,140.78,140.73,23.5291]
[1642488717403,10.9075,140.8,140.73,23.5291]
[1642488717603,10.9075,140.8,140.73,29.5291]
[1642488718103,10.9075,140.8,140.73,23.5291]
[1642488718303,10.9075,140.8,140.73,29.5291]
[1642488718503,0.25,140.8,140.73,29.5291]
[1642488718705,26.2077,140.81,140.73,36.0531]
[1642488718903,23.3657,140.81,140.74,0.25]
[1642488719103,23.3657,140.81,140.74,2.841]
[1642488719305,23.3657,140.81,140.74,8.841]
[1642488719704,71.25024991,140.81,140.74,8.841]
[1642488719905,71.25024991,140.81,140.74,19.496]
[1642488720104,3.091,140.8,140.74,16.655]
[1642488720305,3.091,140.8,140.74,6.0]
[1642488720903,3.091,140.8,140.73,23.5291]
[1642488720904,3.091,140.8,140.73,29.5291]
[1642488721106,0.25,140.8,140.73,29.5291]
[1642488721411,2.841,140.79,140.73,29.5291]
[1642488721806,0.25,140.78,140.73,29.5291]
[1642488722408,27.4697,140.83,140.73,29.5291]
[1642488722611,0.25,140.8,140.73,29.5291]
[1642488722809,0.25,140.8,140.74,0.25]
[1642488723008,0.25,140.8,140.74,10.6547]
[1642488723308,0.25,140.8,140.75,23.3192]
[1642488723709,0.25,140.81,140.75,23.3192]
[1642488724907,4.88005272,140.81,140.75,23.3192]
[1642488725508,4.88005272,140.81,140.74,6.0]
[1642488725711,4.88005272,140.81,140.72,16.6563]
[1642488725909,29.46085272,140.81,140.73,22.9436]
[1642488726107,31.7226828,140.81,140.73,22.9436]
[1642488726309,42.3793828,140.81,140.73,28.9436]
[1642488726511,44.16843552,140.81,140.73,28.9436]
[1642488726908,42.3793828,140.81,140.73,28.9436]
[1642488727409,39.5383828,140.81,140.73,28.9436]
[1642488729509,35.4875,140.81,140.73,28.9436]
[1642488730613,37.27655272,140.81,140.73,28.9436]
[1642488730812,2.841,140.8,140.69,10.23]
[1642488731114,10.6594,140.78,140.71,6.0]
[1642488731312,44.11818025,140.77,140.69,16.23]
[1642488731516,44.11818025,140.77,140.69,6.0]
[1642488731714,44.11818025,140.77,140.68,19.5001]
[1642488732116,23.4916,140.76,140.69,23.8576]
[1642488732315,0.25,140.75,140.69,29.8576]
[1642488732943,54.52798025,140.77,140.69,23.8576]
[1642488733142,54.52798025,140.77,140.68,2.841]
[1642488733345,56.31703297,140.77,140.68,2.841]
[1642488734343,24.5976,140.76,140.68,2.841]
[1642488734542,10.662,140.74,140.68,6.0]
[1642488735044,0.25,140.73,140.68,6.0]
[1642488735343,0.25,140.73,140.66,30.7686]
[1642488738044,0.25,140.73,140.67,0.25]
[1642488739345,0.25,140.73,140.67,3.092]
[1642488739845,0.25,140.73,140.67,9.092]
[1642488741253,0.25,140.73,140.67,2.842]
[1642488741455,0.25,140.73,140.66,27.6106]
[1642488742854,0.25,140.73,140.66,33.6106]
[1642488743053,0.25,140.73,140.66,27.6106]
[1642488744057,0.25,140.73,140.66,24.7686]
[1642488744957,0.25,140.73,140.66,30.7686]
[1642488745158,0.25,140.73,140.66,24.7686]
[1642488749064,0.25,140.73,140.66,30.7686]
[1642488749461,0.25,140.73,140.66,24.7686]
[1642488751567,10.9127,140.73,140.66,24.7686]
[1642488751765,47.93142064,140.72,140.66,24.7686]
[1642488753564,10.6627,140.73,140.67,0.25]
[1642488753767,2.842,140.76,140.67,0.25]
[1642488753965,24.997,140.76,140.67,3.092]
[1642488754365,24.997,140.76,140.67,9.092]
[1642488754565,60.17891448,140.76,140.68,24.043]
[1642488755369,0.25,140.75,140.68,24.043]
[1642488758904,10.9115,140.75,140.68,24.043]
[1642488759072,10.9115,140.75,140.67,2.842]
[1642488759275,2.842,140.74,140.66,23.0521]
[1642488759673,0.25,140.73,140.66,29.0521]
[1642488761474,13.5048,140.74,140.67,0.25]
[1642488761674,35.6582,140.76,140.67,3.092]
[1642488761874,162.89639607,140.89,140.7,50.0]
[1642488761875,18.55652855,140.83,140.7,50.0]
[1642488762075,411.5645833,140.86,140.73,0.32185076]
[1642488762273,408.7225833,140.86,140.77,0.30826131]
[1642488762474,10.12609607,140.89,140.78,82.03]
[1642488762676,10.12609607,140.89,140.79,17.13826045]
[1642488762875,10.12609607,140.89,140.8,82.03]
[1642488763178,1.1447446,140.93,140.84,71.8]
[1642488763377,1.1447446,140.93,140.85,0.25]
[1642488763576,1.1447446,140.93,140.85,1.45928425]
[1642488763775,1.1447446,140.93,140.85,17.68928425]
[1642488763978,1.1447446,140.93,140.86,1.20928425]
[1642488764178,1.1447446,140.93,140.87,10.6444]
[1642488764377,1.1447446,140.93,140.88,3.03219997]
[1642488764577,74.639,140.98,140.95,1.28650627]
[1642488764980,3.03219997,140.97,140.95,1.28650627]
[1642488766079,49.25,140.96,140.95,1.28650627]
[1642488766707,0.25,140.96,140.95,1.28650627]
[1642488768009,0.25,140.96,140.91,0.11310365]
[1642488768412,0.25,140.97,140.91,0.11310365]
[1642488769509,3.45464863,140.96,140.91,0.11310365]
[1642488769710,2.838,140.95,140.91,0.11310365]
[1642488769910,48.44994814,140.95,140.91,0.11310365]
[1642488770108,120.24994814,140.95,140.91,0.11310365]
[1642488771311,48.44994814,140.95,140.91,0.11310365]
[1642488771510,45.61194814,140.95,140.91,0.11310365]
[1642488772711,0.25,140.95,140.91,0.11310365]
[1642488777819,3.088,140.95,140.91,0.11310365]
[1642488778020,0.25,140.95,140.91,0.11310365]
[1642488782627,3.088,140.95,140.91,0.11310365]
[1642488783730,0.25,140.95,140.91,0.11310365]
[1642488786135,3.088,140.95,140.91,0.11310365]
[1642488786536,27.8265,140.95,140.91,0.11310365]
[1642488787136,27.8265,140.95,140.91,0.00310365]
[1642488788337,38.4748,140.95,140.91,0.00310365]
[1642488788539,44.1398,140.95,140.91,0.00310365]
[1642488788739,10.23,140.94,140.91,0.00310365]
[1642488788945,5.87019997,140.93,140.91,0.00310365]
[1642488789140,22.535,140.92,140.91,0.00310365]
[1642488789341,46.5073,140.92,140.91,0.00310365]
[1642488791641,73.00371697,140.92,140.91,0.00310365]
[1642488793171,69.4302,140.92,140.91,0.00310365]
[1642488793666,141.2302,140.92,140.91,0.00310365]
[1642488794070,142.88677278,140.92,140.91,0.00310365]
[1642488795975,145.58836778,140.92,140.91,0.00310365]
[1642488797977,39.48335224,140.91,140.78,5.33242748]
[1642488798174,71.8,140.86,140.78,5.33242748]
[1642488798373,49.69628922,140.85,140.78,5.33242748]
[1642488798773,49.69628922,140.85,140.77,2.838]
[1642488798975,49.69628922,140.85,140.75,2.84]
[1642488799773,49.69628922,140.85,140.76,5.38129462]
[1642488799974,49.69628922,140.85,140.77,2.84]
[1642488801381,49.69628922,140.85,140.78,5.38129462]
[1642488802178,0.25,140.85,140.78,5.38129462]
[1642488802384,0.25,140.86,140.78,5.38129462]
[1642488803079,42.99825836,140.86,140.78,5.38129462]
[1642488804484,42.99825836,140.86,140.76,46.09026602]
[1642488805684,45.83825836,140.86,140.77,5.38129462]
[1642488806983,42.99825836,140.86,140.77,5.38129462]
[1642488810397,2.84,140.85,140.77,5.38129462]
[1642488810791,0.25,140.84,140.77,5.38129462]
[1642488812123,0.25,140.84,140.76,23.684]
[1642488816829,0.25,140.84,140.74,26.1474]
[1642488817029,2.841,140.83,140.73,10.23]
[1642488817236,2.841,140.83,140.71,15.68251061]
[1642488817237,10.66,140.8,140.71,2.841]
[1642488817428,10.66,140.8,140.67,22.6588]
[1642488817429,2.841,140.79,140.67,25.4998]
[1642488817630,0.25,140.79,140.67,22.6588]
[1642488817828,2.842,140.78,140.68,18.56989157]
[1642488818232,0.25,140.77,140.68,18.56989157]
[1642488818430,0.25,140.77,140.69,10.6591]
[1642488818830,0.25,140.77,140.7,0.25]
[1642488819433,0.25,140.8,140.7,0.25]
[1642488819832,35.0804,140.81,140.7,0.25]
[1642488820033,2.841,140.8,140.7,0.25]
[1642488820237,35.0804,140.81,140.72,4.57691796]
[1642488821533,24.4216,140.81,140.73,5.3534606]
[1642488822533,0.25,140.8,140.73,5.3534606]
[1642488823437,49.16058444,140.8,140.73,5.3534606]
[1642488824235,49.16058444,140.8,140.72,15.23351796]
[1642488824636,0.25,140.8,140.72,15.23351796]
[1642488824835,0.25,140.8,140.73,0.25]
[1642488825535,0.25,140.8,140.72,15.23351796]
[1642488826740,3.091,140.8,140.72,15.23351796]
[1642488828244,3.091,140.8,140.73,1.94206122]
[1642488828444,0.25,140.8,140.73,1.94206122]
[1642488828850,2.841,140.79,140.73,1.94206122]
[1642488829246,0.25,140.78,140.73,1.94206122]
[1642488829845,3.091,140.78,140.73,1.94206122]
[1642488830173,3.091,140.78,140.71,26.06346122]
[1642488832846,74.891,140.78,140.71,1.94206122]
[1642488833850,76.91575963,140.78,140.69,32.67906122]
[1642488834447,100.13135963,140.78,140.69,32.67906122]
[1642488834649,110.79195963,140.78,140.69,32.67906122]
[1642488835250,110.79195963,140.78,140.7,1.94206122]
[1642488840385,2.02475963,140.77,140.69,7.94206122]
[1642488840583,40.64356978,140.75,140.69,1.94206122]
[1642488840783,0.25,140.74,140.69,7.94206122]
[1642488840983,0.25,140.74,140.69,1.94206122]
[1642488845091,0.25,140.74,140.69,7.94206122]
[1642488848494,3.092,140.74,140.69,7.94206122]
[1642488849095,2.842,140.74,140.69,7.94206122]
[1642488849498,40.64356978,140.75,140.69,7.94206122]
[1642488850497,0.25,140.74,140.69,7.94206122]
[1642488854801,0.25,140.75,140.69,7.94206122]
[1642488855601,26.0371,140.76,140.69,7.94206122]
[1642488855802,4.86675963,140.78,140.7,0.25]
[1642488856004,2.02475963,140.78,140.7,3.092]
[1642488856604,2.02475963,140.78,140.71,20.68852707]
[1642488856804,2.02475963,140.78,140.71,23.3433]
[1642488857007,0.25,140.77,140.71,17.3433]
[1642488857504,0.25,140.77,140.71,25.28536122]
[1642488857906,3.092,140.79,140.71,39.63399777]
[1642488858307,3.092,140.79,140.71,45.63399777]
[1642488859308,0.25,140.79,140.71,39.63399777]
[1642488859911,0.25,140.79,140.71,45.63399777]
[1642488860110,0.25,140.79,140.71,39.63399777]
[1642488860309,0.25,140.79,140.71,28.97669777]
[1642488860508,0.25,140.79,140.71,34.97669777]
[1642488860908,0.25,140.79,140.71,28.97669777]
[1642488861509,0.25,140.79,140.71,34.97669777]
[1642488861709,0.25,140.79,140.71,28.97669777]
[1642488861910,0.25,140.79,140.71,59.28989777]
[1642488862509,0.25,140.79,140.71,69.94739777]
[1642488863012,0.25,140.79,140.71,63.94739777]
[1642488863210,0.25,140.79,140.71,32.94126122]
[1642488863810,72.05,140.79,140.71,32.94126122]
[1642488864012,72.05,140.79,140.71,30.9992]
[1642488864216,117.79813015,140.78,140.71,24.3132]
[1642488864412,2.842,140.77,140.71,24.3132]
[1642488864612,2.842,140.77,140.71,30.3132]
[1642488864613,3.092,140.77,140.71,30.3132]
[1642488864814,3.092,140.77,140.71,24.3132]
[1642488865011,3.092,140.77,140.71,30.3132]
[1642488865217,3.092,140.77,140.71,24.3132]
[1642488865513,0.25,140.77,140.71,24.3132]
[1642488875251,2.842,140.76,140.71,24.3132]
[1642488875652,0.25,140.75,140.71,24.3132]
[1642488877454,48.74727744,140.75,140.71,24.3132]
[1642488877654,48.74727744,140.75,140.69,1.94206122]
[1642488878053,48.74727744,140.75,140.69,7.94206122]
[1642488878253,48.74727744,140.75,140.69,6.0]
[1642488878553,48.74727744,140.75,140.68,1.94206122]
[1642488880257,71.8,140.74,140.68,1.94206122]
[1642488880454,2.842,140.73,140.68,1.94206122]
[1642488880655,3.092,140.73,140.68,1.94206122]
[1642488881057,46.64355281,140.72,140.67,1.94206122]
[1642488881256,3.093,140.71,140.67,1.94206122]
[1642488881458,74.893,140.71,140.67,1.94206122]
[1642488882157,74.893,140.71,140.64,1.94206122]
[1642488882556,74.893,140.71,140.64,7.94206122]
[1642488883557,27.4046,140.71,140.64,7.94206122]
[1642488886162,27.4046,140.71,140.64,11.31526283]
[1642488886762,24.5616,140.71,140.64,11.31526283]
[1642488887865,27.4046,140.71,140.64,11.31526283]
[1642488888264,38.0704,140.71,140.64,1.94206122]
[1642488888865,39.85945272,140.71,140.64,1.94206122]
[1642488889467,47.99778306,140.69,140.64,1.94206122]
[1642488889667,2.843,140.68,140.64,1.94206122]
[1642488889868,3.093,140.68,140.62,1.94206122]
[1642488890069,0.25,140.68,140.62,1.94206122]
[1642488892977,3.093,140.68,140.62,1.94206122]
[1642488893171,13.761,140.68,140.62,1.94206122]
[1642488894171,10.918,140.68,140.62,1.94206122]
[1642488897072,0.25,140.68,140.62,1.94206122]
[1642488897872,2.843,140.69,140.62,1.94206122]
[1642488898077,13.5101,140.7,140.62,1.94206122]
[1642488898473,13.5101,140.7,140.63,5.26362806]
[1642488898673,2.843,140.7,140.63,5.26362806]
[1642488899274,0.25,140.69,140.63,5.26362806]
[1642488899675,0.25,140.7,140.63,7.20568928]
[1642488900774,0.25,140.7,140.64,1.94206122]
[1642488900977,0.25,140.7,140.64,9.48706122]
[1642488901174,2.843,140.71,140.65,0.25]
[1642488901375,2.02475963,140.74,140.65,3.093]
[1642488901577,0.25,140.73,140.65,26.2302]
[1642488901975,0.25,140.73,140.66,1.94206122]
[1642488902175,2.843,140.72,140.66,1.94206122]
[1642488902373,0.25,140.71,140.66,1.94206122]
[1642488902574,0.25,140.71,140.66,19.82524269]
[1642488903573,0.25,140.71,140.66,1.94206122]
[1642488905310,0.25,140.71,140.67,18.35289354]
[1642488905711,3.093,140.74,140.67,18.35289354]
[1642488906311,3.093,140.74,140.67,20.29495476]
[1642488907012,13.7567,140.74,140.67,20.29495476]
[1642488908412,13.7567,140.74,140.66,1.94206122]
[1642488909409,13.7567,140.74,140.67,19.30198591]
[1642488910211,13.7567,140.74,140.66,1.94206122]
[1642488911213,49.36150227,140.73,140.66,1.94206122]
[1642488911417,13.7584,140.72,140.66,1.94206122]
[1642488912314,25.77745272,140.72,140.66,1.94206122]
[1642488913115,27.80221235,140.72,140.63,1.94206122]
[1642488913315,24.0154,140.71,140.63,1.94206122]
[1642488913519,10.6687,140.68,140.63,1.94206122]
[1642488913715,43.02701974,140.67,140.63,1.94206122]
[1642488913916,43.27701974,140.67,140.63,1.94206122]
[1642488914516,53.94581974,140.67,140.63,1.94206122]
[1642488916620,10.9188,140.67,140.63,1.94206122]
[1642488917518,0.25,140.67,140.63,1.94206122]
[1642488917718,0.25,140.67,140.63,7.94206122]
[1642488917919,65.70322512,140.68,140.63,1.94206122]
[1642488918219,22.9432,140.68,140.63,7.94206122]
[1642488919220,0.25,140.68,140.63,7.94206122]
[1642488919422,42.52495774,140.71,140.63,7.94206122]
[1642488919621,0.25,140.69,140.63,7.94206122]
[1642488919820,42.52495774,140.71,140.63,7.94206122]
[1642488920120,42.52495774,140.71,140.64,1.94206122]
[1642488920320,42.52495774,140.71,140.64,7.94206122]
[1642488920521,53.19095774,140.71,140.64,7.94206122]
[1642488921327,10.666,140.71,140.65,1.94206122]
[1642488921724,23.1229,140.72,140.65,14.39206122]
[1642488921923,2.02475963,140.74,140.65,8.39206122]
[1642488922823,2.02475963,140.74,140.65,25.05396122]
[1642488923424,53.56074845,140.75,140.65,25.05396122]
[1642488923425,53.56074845,140.75,140.67,1.94206122]
[1642488923625,4.47084845,140.75,140.67,1.94206122]
[1642488923827,1.62784845,140.75,140.68,0.25]
[1642488924126,2.02475963,140.76,140.69,2.842]
[1642488924524,2.02475963,140.77,140.7,18.38515517]
[1642488925126,0.25,140.76,140.7,18.38515517]
[1642488925927,2.02475963,140.77,140.7,18.38515517]
[1642488926129,2.02475963,140.77,140.71,0.25]
[1642488926332,2.02475963,140.77,140.72,2.842]
[1642488926528,2.02475963,140.78,140.72,2.842]
[1642488926727,2.02475963,140.78,140.73,0.25]
[1642488927728,2.02475963,140.82,140.73,2.19206122]
[1642488928029,4.86575963,140.82,140.74,10.6544]
[1642488928228,2.02475963,140.82,140.75,2.841]
[1642488928532,2.02475963,140.82,140.75,76.1090227]
[1642488928729,2.02475963,140.82,140.76,1.2180227]
[1642488928932,2.02475963,140.82,140.77,7.60265436]
[1642488929132,2.02475963,140.82,140.77,15.58065436]
[1642488929329,2.02475963,140.83,140.77,21.58065436]
[1642488929529,2.02475963,140.83,140.77,32.23215436]
[1642488931134,2.02475963,140.85,140.77,34.17421558]
[1642488931535,1.52475963,140.85,140.77,34.17421558]
[1642488932235,44.46563699,140.88,140.77,34.17421558]
[1642488932433,0.25,140.87,140.77,34.17421558]
[1642488932634,0.25,140.87,140.77,29.41256122]
[1642488932935,0.25,140.87,140.77,29.16256122]
[1642488933134,2.03905272,140.87,140.77,23.16256122]
[1642488933536,2.84,140.86,140.77,1.94206122]
[1642488933935,2.03905272,140.85,140.77,1.94206122]
[1642488934135,38.06742377,140.83,140.77,1.94206122]
[1642488934334,3.09,140.82,140.77,1.94206122]
[1642488934535,3.09,140.82,140.76,24.8709]
[1642488934734,3.09,140.82,140.73,10.23]
[1642488934935,3.09,140.82,140.73,16.23]
[1642488935536,3.09,140.82,140.74,10.6553]
[1642488936038,3.09,140.82,140.74,6.0]
[1642488936836,3.09,140.82,140.73,16.23]
[1642488937239,3.09,140.82,140.74,0.25]
[1642488937436,0.25,140.82,140.74,7.546]
[1642488938139,0.25,140.82,140.74,13.546]
[1642488938539,0.25,140.82,140.74,24.2008]
[1642488938837,38.06742377,140.83,140.74,13.546]